[Event "British Rapidplay Championship 2023"]
[Site "Mercure Bradford, Bankfield Hotel"]
[Date "2023.04.15"]
[Round "5.20"]
[White "Cuaresma, Gerald"]
[Black "Raynes, Paul"]
[Result "1-0"]
[TimeControl "15 minutes plus 10 seconds per move"]
[WhiteElo "1741"]
[BlackElo "2077"]

1. d4 {[%clk 00:15:17]} {[%emt 00:00:02]} Nf6 {[%clk 00:15:18]} {[%emt
00:00:03]} 2. Bg5 {[%clk 00:15:26]} {[%emt 00:00:02]} Ne4 {[%clk 00:15:19]}
{[%emt 00:00:08]} 3. h4 {[%clk 00:15:33]} {[%emt 00:00:03]} h6 {[%clk
00:14:53]} {[%emt 00:00:35]} 4. Nd2 {[%clk 00:15:11]} {[%emt 00:00:33]} Nxd2
{[%clk 00:14:12]} {[%emt 00:00:51]} 5. Bxd2 {[%clk 00:15:19]} {[%emt 00:00:02]}
b6 {[%clk 00:13:37]} {[%emt 00:00:46]} 6. e4 {[%clk 00:15:08]} {[%emt
00:00:21]} e6 {[%clk 00:13:31]} {[%emt 00:00:15]} 7. Bd3 {[%clk 00:14:52]}
{[%emt 00:00:26]} Ba6 {[%clk 00:12:44]} {[%emt 00:00:57]} 8. Bxa6 {[%clk
00:14:42]} {[%emt 00:00:20]} Nxa6 {[%clk 00:12:53]} {[%emt 00:00:02]} 9. Qe2
{[%clk 00:14:50]} {[%emt 00:00:01]} Qc8 {[%clk 00:12:40]} {[%emt 00:00:23]} 10.
O-O-O {[%clk 00:14:14]} {[%emt 00:00:46]} Qb7 {[%clk 00:12:27]} {[%emt
00:00:23]} 11. Nf3 {[%clk 00:13:28]} {[%emt 00:00:56]} d6 {[%clk 00:11:38]}
{[%emt 00:00:59]} 12. d5 {[%clk 00:12:59]} {[%emt 00:00:39]} O-O-O {[%clk
00:10:49]} {[%emt 00:00:59]} 13. Nd4 {[%clk 00:12:41]} {[%emt 00:00:28]} Re8
{[%clk 00:08:26]} {[%emt 00:02:33]} 14. Qb5 {[%clk 00:12:14]} {[%emt 00:00:37]}
Be7 {[%clk 00:08:03]} {[%emt 00:00:33]} 15. Nc6 {[%clk 00:10:19]} {[%emt
00:02:05]} exd5 {[%clk 00:06:39]} {[%emt 00:01:34]} 16. exd5 {[%clk 00:10:27]}
{[%emt 00:00:02]} Bf6 {[%clk 00:06:39]} {[%emt 00:00:10]} 17. Rhe1 {[%clk
00:10:12]} {[%emt 00:00:24]} Rxe1 {[%clk 00:06:17]} {[%emt 00:00:33]} 18. Rxe1
{[%clk 00:10:19]} {[%emt 00:00:03]} Nc5 {[%clk 00:06:02]} {[%emt 00:00:25]} 19.
Qc4 {[%clk 00:08:21]} {[%emt 00:02:07]} h5 {[%clk 00:05:19]} {[%emt 00:00:53]}
20. Bc3 {[%clk 00:07:07]} {[%emt 00:01:24]} Bxc3 {[%clk 00:03:59]} {[%emt
00:01:29]} 21. Qxc3 {[%clk 00:07:14]} {[%emt 00:00:03]} f6 {[%clk 00:03:40]}
{[%emt 00:00:30]} 22. Re7 {[%clk 00:06:55]} {[%emt 00:00:29]} Rg8 {[%clk
00:03:10]} {[%emt 00:00:41]} 23. Qh3+ {[%emt 00:00:45]} 1-0

[Event "British Rapidplay Championship 2023"]
[Site "Mercure Bradford, Bankfield Hotel"]
[Date "2023.04.15"]
[Round "5.21"]
[White "Gopakumar, Siddharth"]
[Black "Patrick, Chaski"]
[Result "0-1"]
[TimeControl "15 minutes plus 10 seconds per move"]
[WhiteElo "1735"]
[BlackElo "2032"]

1. e4 {[%clk 00:15:18]} {[%emt 00:00:03]} d6 {[%clk 00:15:15]} {[%emt
00:00:05]} 2. d4 {[%clk 00:15:26]} {[%emt 00:00:02]} Nf6 {[%clk 00:15:23]}
{[%emt 00:00:01]} 3. Nc3 {[%clk 00:15:34]} {[%emt 00:00:02]} g6 {[%clk
00:15:32]} 4. f4 {[%clk 00:15:39]} {[%emt 00:00:06]} Bg7 {[%clk 00:15:41]}
{[%emt 00:00:02]} 5. Nf3 {[%clk 00:15:43]} {[%emt 00:00:06]} O-O {[%clk
00:15:48]} {[%emt 00:00:02]} 6. h3 {[%clk 00:15:52]} {[%emt 00:00:02]} c6
{[%clk 00:15:51]} {[%emt 00:00:06]} 7. Be3 {[%clk 00:15:56]} {[%emt 00:00:06]}
b5 {[%clk 00:15:26]} {[%emt 00:00:36]} 8. Bd3 {[%clk 00:15:53]} {[%emt
00:00:13]} a6 {[%clk 00:14:50]} {[%emt 00:00:46]} 9. Qd2 {[%clk 00:14:46]}
{[%emt 00:01:17]} Nfd7 {[%clk 00:14:44]} {[%emt 00:00:16]} 10. O-O {[%clk
00:14:20]} {[%emt 00:00:35]} c5 {[%clk 00:14:09]} {[%emt 00:00:46]} 11. a4
{[%clk 00:12:01]} {[%emt 00:02:28]} b4 {[%clk 00:11:18]} {[%emt 00:03:02]} 12.
Ne2 {[%clk 00:11:23]} {[%emt 00:00:48]} Qc7 {[%clk 00:11:14]} {[%emt 00:00:13]}
13. c4 {[%clk 00:10:23]} {[%emt 00:01:11]} cxd4 {[%clk 00:10:14]} {[%emt
00:01:10]} 14. Bxd4 {[%clk 00:10:09]} {[%emt 00:00:24]} e5 {[%clk 00:10:06]}
{[%emt 00:00:17]} 15. Be3 {[%clk 00:07:32]} {[%emt 00:02:48]} Nc5 {[%clk
00:10:11]} {[%emt 00:00:05]} 16. Nc1 {[%clk 00:07:10]} {[%emt 00:00:33]} Bb7
{[%clk 00:10:03]} {[%emt 00:00:17]} 17. fxe5 {[%clk 00:05:21]} {[%emt
00:01:58]} dxe5 {[%clk 00:09:47]} {[%emt 00:00:26]} 18. Qxb4 {[%clk 00:05:26]}
{[%emt 00:00:06]} Nxd3 {[%clk 00:09:09]} {[%emt 00:00:48]} 19. Nxd3 {[%clk
00:05:29]} {[%emt 00:00:07]} Bxe4 {[%clk 00:09:17]} {[%emt 00:00:02]} 20. Qc5
{[%clk 00:04:28]} {[%emt 00:01:11]} Qxc5 {[%clk 00:08:35]} {[%emt 00:00:52]} 21.
Nxc5 {[%clk 00:04:13]} {[%emt 00:00:24]} Bxf3 {[%clk 00:08:21]} {[%emt
00:00:25]} 22. Rxf3 {[%clk 00:04:08]} {[%emt 00:00:15]} Rd8 {[%clk 00:07:18]}
{[%emt 00:01:12]} 23. Bg5 {[%clk 00:03:42]} {[%emt 00:00:37]} Rc8 {[%clk
00:07:27]} 24. Be3 {[%clk 00:03:51]} {[%emt 00:00:01]} Nc6 {[%clk 00:07:17]}
{[%emt 00:00:21]} 25. Rd1 {[%clk 00:03:30]} {[%emt 00:00:30]} Nd4 {[%clk
00:07:12]} {[%emt 00:00:15]} 26. Bxd4 {[%clk 00:02:59]} {[%emt 00:00:40]} exd4
{[%clk 00:07:21]} {[%emt 00:00:01]} 27. Nd7 {[%clk 00:02:56]} {[%emt 00:00:15]}
Rc6 {[%clk 00:05:19]} {[%emt 00:02:11]} 28. a5 {[%clk 00:01:39]} {[%emt
00:01:27]} Re8 {[%clk 00:05:20]} {[%emt 00:00:09]} 29. b3 {[%clk 00:01:21]}
{[%emt 00:00:28]} Re2 {[%clk 00:05:19]} {[%emt 00:00:10]} 30. Rdf1 {[%clk
00:00:52]} {[%emt 00:00:40]} f5 {[%clk 00:05:17]} {[%emt 00:00:12]} 31. R3f2
{[%clk 00:00:17]} {[%emt 00:00:45]} d3 {[%clk 00:05:19]} {[%emt 00:00:07]} 32.
Rxe2 {[%clk 00:00:21]} {[%emt 00:00:07]} dxe2 {[%clk 00:05:28]} {[%emt
00:00:01]} 33. Re1 {[%clk 00:00:27]} {[%emt 00:00:04]} Bd4+ {[%clk 00:05:35]}
{[%emt 00:00:03]} 34. Kh2 {[%clk 00:00:27]} {[%emt 00:00:10]} Re6 {[%clk
00:05:44]} {[%emt 00:00:02]} 35. c5 {[%clk 00:00:19]} {[%emt 00:00:17]} Bc3
{[%clk 00:05:32]} {[%emt 00:00:22]} 36. c6 {[%clk 00:00:11]} {[%emt 00:00:18]}
Bxe1 {[%clk 00:05:34]} {[%emt 00:00:07]} 37. Nb8 {[%clk 00:00:12]} {[%emt
00:00:10]} Bxa5 {[%clk 00:05:37]} {[%emt 00:00:08]} 0-1

[Event "British Rapidplay Championship 2023"]
[Site "Mercure Bradford, Bankfield Hotel"]
[Date "2023.04.15"]
[Round "5.22"]
[White "Ciuravin, Andrei"]
[Black "Larchikov, Maksym"]
[Result "1/2-1/2"]
[TimeControl "15 minutes plus 10 seconds per move"]
[WhiteElo "2185"]
[BlackElo "1871"]

1. d4 {[%clk 00:15:18]} {[%emt 00:00:01]} d5 {[%clk 00:15:17]} {[%emt
00:00:03]} 2. Nf3 {[%clk 00:15:26]} {[%emt 00:00:02]} Nf6 {[%clk 00:15:23]}
{[%emt 00:00:04]} 3. Bg5 {[%clk 00:15:31]} {[%emt 00:00:05]} e6 {[%clk
00:15:26]} {[%emt 00:00:08]} 4. Nbd2 {[%clk 00:15:36]} {[%emt 00:00:04]} c5
{[%clk 00:15:12]} {[%emt 00:00:24]} 5. e3 {[%clk 00:15:45]} {[%emt 00:00:02]}
Nc6 {[%clk 00:14:59]} {[%emt 00:00:23]} 6. c3 {[%clk 00:15:53]} {[%emt
00:00:02]} Be7 {[%clk 00:15:00]} {[%emt 00:00:09]} 7. Bd3 {[%clk 00:16:00]}
{[%emt 00:00:03]} h6 {[%clk 00:15:05]} {[%emt 00:00:05]} 8. Bh4 {[%clk
00:16:08]} {[%emt 00:00:02]} O-O {[%clk 00:15:12]} {[%emt 00:00:03]} 9. O-O
{[%clk 00:16:15]} {[%emt 00:00:03]} Qc7 {[%clk 00:14:46]} {[%emt 00:00:36]} 10.
Rc1 {[%clk 00:15:55]} {[%emt 00:00:31]} b6 {[%clk 00:14:28]} {[%emt 00:00:28]}
11. Bb1 {[%clk 00:15:35]} {[%emt 00:00:29]} Re8 {[%clk 00:13:52]} {[%emt
00:00:46]} 12. Qc2 {[%clk 00:15:26]} {[%emt 00:00:19]} g6 {[%clk 00:13:52]}
{[%emt 00:00:10]} 13. Rfe1 {[%clk 00:14:46]} {[%emt 00:00:51]} Bb7 {[%clk
00:12:51]} {[%emt 00:01:11]} 14. Rcd1 {[%clk 00:14:35]} {[%emt 00:00:21]} Ne4
{[%clk 00:12:22]} {[%emt 00:00:39]} 15. Nxe4 {[%clk 00:14:29]} {[%emt
00:00:16]} dxe4 {[%clk 00:12:17]} {[%emt 00:00:15]} 16. Bg3 {[%clk 00:14:31]}
{[%emt 00:00:08]} Qc8 {[%clk 00:11:48]} {[%emt 00:00:40]} 17. Nd2 {[%clk
00:14:32]} {[%emt 00:00:09]} f5 {[%clk 00:11:42]} {[%emt 00:00:16]} 18. dxc5
{[%clk 00:14:28]} {[%emt 00:00:14]} bxc5 {[%clk 00:11:07]} {[%emt 00:00:46]} 19.
Nc4 {[%clk 00:14:32]} {[%emt 00:00:05]} Ba6 {[%clk 00:09:42]} {[%emt 00:01:35]}
20. Nd6 {[%clk 00:14:28]} {[%emt 00:00:15]} Bxd6 {[%clk 00:09:27]} {[%emt
00:00:24]} 21. Rxd6 {[%clk 00:14:23]} {[%emt 00:00:14]} Rd8 {[%clk 00:06:42]}
{[%emt 00:02:55]} 22. Qa4 {[%clk 00:13:08]} {[%emt 00:01:25]} Rxd6 {[%clk
00:06:44]} {[%emt 00:00:08]} 23. Bxd6 {[%clk 00:13:16]} {[%emt 00:00:02]} Qb7
{[%clk 00:06:48]} {[%emt 00:00:07]} 24. Bxc5 {[%clk 00:13:16]} {[%emt
00:00:11]} Rd8 {[%clk 00:06:42]} {[%emt 00:00:16]} 25. b4 {[%clk 00:08:28]}
{[%emt 00:04:57]} Ne5 {[%clk 00:05:42]} {[%emt 00:01:10]} 26. Bd4 {[%clk
00:08:27]} {[%emt 00:00:11]} Nc4 {[%clk 00:04:31]} {[%emt 00:01:21]} 27. Qb3
{[%clk 00:08:22]} {[%emt 00:00:15]} Qd5 {[%clk 00:03:57]} {[%emt 00:00:43]} 28.
Qa4 {[%clk 00:06:13]} {[%emt 00:02:20]} Qb7 {[%clk 00:03:27]} {[%emt 00:00:40]}
29. Rd1 {[%clk 00:04:43]} {[%emt 00:01:40]} Nb2 {[%clk 00:01:59]} {[%emt
00:01:37]} 30. Qa5 {[%clk 00:04:41]} {[%emt 00:00:13]} Rd5 {[%clk 00:01:54]}
{[%emt 00:00:15]} 31. Qa3 {[%clk 00:04:27]} {[%emt 00:00:24]} Nxd1 {[%clk
00:01:59]} {[%emt 00:00:05]} 32. Qc1 {[%clk 00:04:36]} {[%emt 00:00:01]} e5
{[%clk 00:01:35]} {[%emt 00:00:34]} 33. c4 {[%clk 00:04:40]} {[%emt 00:00:07]}
Qc6 {[%clk 00:01:13]} {[%emt 00:00:31]} 34. Qxd1 {[%clk 00:04:17]} {[%emt
00:00:32]} Qxc4 {[%clk 00:01:17]} {[%emt 00:00:07]} 35. Bc2 {[%clk 00:04:18]}
{[%emt 00:00:10]} exd4 {[%clk 00:00:59]} {[%emt 00:00:28]} 36. Bb3 {[%clk
00:04:27]} Qc6 {[%clk 00:01:01]} {[%emt 00:00:07]} 37. h4 {[%clk 00:04:20]}
{[%emt 00:00:16]} Kh7 {[%clk 00:01:02]} {[%emt 00:00:09]} 38. a4 {[%clk
00:04:29]} {[%emt 00:00:02]} Rd7 {[%clk 00:00:46]} {[%emt 00:00:26]} 39. b5
{[%clk 00:04:36]} {[%emt 00:00:03]} Bxb5 {[%clk 00:00:54]} {[%emt 00:00:03]} 40.
axb5 {[%clk 00:04:45]} Qxb5 {[%clk 00:01:00]} {[%emt 00:00:04]} 41. exd4 {[%clk
00:04:54]} {[%emt 00:00:01]} a5 {[%clk 00:01:01]} {[%emt 00:00:09]} 42. Ba4
{[%clk 00:05:01]} {[%emt 00:00:03]} Qd5 {[%clk 00:01:06]} {[%emt 00:00:05]} 43.
Bxd7 {[%clk 00:05:09]} {[%emt 00:00:02]} Qxd7 {[%clk 00:01:15]} {[%emt
00:00:01]} 44. d5 {[%clk 00:05:18]} a4 {[%clk 00:01:17]} {[%emt 00:00:08]} 45.
Qd4 {[%clk 00:05:26]} {[%emt 00:00:02]} a3 {[%clk 00:01:22]} {[%emt 00:00:05]}
46. Qc4 {[%clk 00:05:30]} {[%emt 00:00:06]} Qa7 {[%clk 00:01:21]} {[%emt
00:00:10]} 47. Qa2 {[%clk 00:05:27]} {[%emt 00:00:14]} Qc5 {[%clk 00:01:23]}
{[%emt 00:00:07]} 48. Qd2 {[%clk 00:05:30]} {[%emt 00:00:07]} Qc4 {[%clk
00:00:53]} {[%emt 00:00:41]} 49. Qa5 {[%clk 00:05:24]} {[%emt 00:00:16]} a2
{[%clk 00:00:59]} {[%emt 00:00:04]} 50. Kh2 {[%clk 00:05:31]} {[%emt 00:00:03]}
Qxd5 {[%clk 00:00:41]} {[%emt 00:00:28]} 51. Qxd5 {[%clk 00:05:38]} {[%emt
00:00:03]} a1=Q {[%clk 00:00:48]} {[%emt 00:00:03]} 52. Qf7+ {[%clk 00:05:46]}
{[%emt 00:00:01]} Qg7 {[%clk 00:00:56]} {[%emt 00:00:02]} 53. Qe6 {[%clk
00:05:52]} {[%emt 00:00:03]} Qc7+ {[%clk 00:01:04]} {[%emt 00:00:02]} 54. g3
{[%clk 00:06:00]} {[%emt 00:00:03]} Kg7 {[%clk 00:01:01]} {[%emt 00:00:13]} 55.
h5 {[%clk 00:06:08]} {[%emt 00:00:02]} Qf7 {[%clk 00:00:29]} {[%emt 00:00:42]}
56. Qe5+ {[%clk 00:06:17]} {[%emt 00:00:01]} Kh7 {[%clk 00:00:38]} {[%emt
00:00:01]} 57. hxg6+ {[%clk 00:06:21]} {[%emt 00:00:06]} Kxg6 {[%clk 00:00:43]}
{[%emt 00:00:05]} 58. Kg2 {[%clk 00:06:10]} {[%emt 00:00:20]} h5 {[%clk
00:00:42]} {[%emt 00:00:11]} 59. Kh3 {[%clk 00:06:11]} {[%emt 00:00:09]} Qd7
{[%clk 00:00:42]} {[%emt 00:00:10]} 60. Kg2 {[%clk 00:06:09]} {[%emt 00:00:12]}
Qc6 {[%clk 00:00:47]} {[%emt 00:00:05]} 61. Kh2 {[%clk 00:06:09]} {[%emt
00:00:09]} Qf6 {[%clk 00:00:47]} {[%emt 00:00:11]} 62. Qe8+ {[%clk 00:06:17]}
{[%emt 00:00:03]} Qf7 {[%clk 00:00:52]} {[%emt 00:00:04]} 63. Qe5 {[%clk
00:06:23]} {[%emt 00:00:04]} Kg5 {[%clk 00:00:32]} {[%emt 00:00:30]} 64. Qf4+
{[%clk 00:06:27]} {[%emt 00:00:06]} Kg6 {[%clk 00:00:39]} {[%emt 00:00:04]} 65.
Qe5 {[%clk 00:06:35]} {[%emt 00:00:02]} Qf6 {[%clk 00:00:28]} {[%emt 00:00:21]}
66. Qe8+ {[%clk 00:06:42]} {[%emt 00:00:02]} Kh6 {[%clk 00:00:36]} {[%emt
00:00:02]} 67. Qb8 {[%clk 00:06:43]} {[%emt 00:00:09]} h4 {[%clk 00:00:19]}
{[%emt 00:00:27]} 68. Qf4+ {[%clk 00:06:50]} {[%emt 00:00:02]} Qg5 {[%clk
00:00:28]} {[%emt 00:00:02]} 69. Qd6+ {[%clk 00:06:55]} {[%emt 00:00:06]} Kh5
{[%clk 00:00:30]} {[%emt 00:00:06]} 70. gxh4 {[%clk 00:06:55]} {[%emt
00:00:11]} Qxh4+ {[%clk 00:00:34]} {[%emt 00:00:07]} 71. Kg2 {[%clk 00:07:03]}
{[%emt 00:00:02]} Kg4 {[%clk 00:00:39]} {[%emt 00:00:04]} 72. Qg6+ {[%clk
00:07:09]} {[%emt 00:00:05]} Qg5 {[%clk 00:00:48]} {[%emt 00:00:02]} 73. Qd6
{[%clk 00:07:13]} {[%emt 00:00:05]} Kh4+ {[%clk 00:00:45]} {[%emt 00:00:13]} 74.
Kh2 {[%clk 00:07:03]} {[%emt 00:00:20]} Kg4 {[%clk 00:00:26]} {[%emt 00:00:30]}
75. Qg3+ {[%clk 00:06:59]} {[%emt 00:00:14]} Kh5 {[%clk 00:00:33]} {[%emt
00:00:04]} 76. Qd6 {[%clk 00:07:07]} {[%emt 00:00:01]} Qh4+ {[%clk 00:00:36]}
{[%emt 00:00:07]} 77. Kg2 {[%clk 00:07:13]} {[%emt 00:00:04]} Qg4+ {[%clk
00:00:44]} {[%emt 00:00:02]} 78. Kh2 {[%clk 00:06:43]} {[%emt 00:00:40]} Qf3
{[%clk 00:00:23]} {[%emt 00:00:31]} 79. Kg1 {[%clk 00:06:39]} {[%emt 00:00:12]}
Qh3 {[%clk 00:00:18]} {[%emt 00:00:15]} 80. Qd7 {[%clk 00:06:13]} {[%emt
00:00:36]} Kg4 {[%clk 00:00:15]} {[%emt 00:00:14]} 81. Qg7+ {[%clk 00:06:02]}
{[%emt 00:00:21]} Kf4 {[%clk 00:00:11]} {[%emt 00:00:14]} 82. Qc7+ {[%clk
00:06:07]} {[%emt 00:00:04]} Kf3 {[%clk 00:00:18]} {[%emt 00:00:03]} 83. Qc3+
{[%clk 00:06:15]} {[%emt 00:00:03]} Kg4 {[%clk 00:00:22]} {[%emt 00:00:07]} 84.
Qg7+ {[%clk 00:06:22]} {[%emt 00:00:01]} f4 {[%emt 00:00:20]} 1/2-1/2

[Event "British Rapidplay Championship 2023"]
[Site "Mercure Bradford, Bankfield Hotel"]
[Date "2023.04.15"]
[Round "5.23"]
[White "Holliday, John K"]
[Black "Hutchinson, Paul A"]
[Result "0-1"]
[TimeControl "15 minutes plus 10 seconds per move"]
[WhiteElo "1832"]
[BlackElo "2184"]

1. e4 {[%clk 00:15:17]} {[%emt 00:00:02]} d5 {[%clk 00:15:19]} {[%emt
00:00:02]} 2. exd5 {[%clk 00:15:26]} {[%emt 00:00:02]} Qxd5 {[%clk 00:15:27]}
{[%emt 00:00:01]} 3. Nc3 {[%clk 00:15:34]} {[%emt 00:00:02]} Qa5 {[%clk
00:15:36]} {[%emt 00:00:01]} 4. Nf3 {[%clk 00:15:40]} {[%emt 00:00:05]} Nf6
{[%clk 00:15:44]} {[%emt 00:00:01]} 5. d3 {[%clk 00:15:36]} {[%emt 00:00:14]}
c6 {[%clk 00:15:05]} {[%emt 00:00:50]} 6. Bd2 {[%clk 00:15:43]} {[%emt
00:00:03]} Qc7 {[%clk 00:15:12]} {[%emt 00:00:02]} 7. Ne4 {[%clk 00:15:26]}
{[%emt 00:00:27]} Nbd7 {[%clk 00:15:09]} {[%emt 00:00:13]} 8. Nxf6+ {[%clk
00:14:53]} {[%emt 00:00:43]} Nxf6 {[%clk 00:15:15]} {[%emt 00:00:05]} 9. Be2
{[%clk 00:15:01]} {[%emt 00:00:02]} e5 {[%clk 00:15:13]} {[%emt 00:00:11]} 10.
O-O {[%clk 00:14:58]} {[%emt 00:00:13]} Bd6 {[%clk 00:15:20]} {[%emt 00:00:04]}
11. g3 {[%clk 00:14:53]} {[%emt 00:00:16]} h6 {[%clk 00:15:25]} {[%emt
00:00:04]} 12. Re1 {[%clk 00:14:51]} {[%emt 00:00:12]} O-O {[%clk 00:15:31]}
{[%emt 00:00:04]} 13. Bc3 {[%clk 00:13:43]} {[%emt 00:01:19]} Nd5 {[%clk
00:15:36]} {[%emt 00:00:04]} 14. Qd2 {[%clk 00:13:43]} {[%emt 00:00:10]} Bf5
{[%clk 00:14:59]} {[%emt 00:00:47]} 15. Nh4 {[%clk 00:12:49]} {[%emt 00:01:05]}
Bh7 {[%clk 00:15:07]} {[%emt 00:00:02]} 16. Bf3 {[%clk 00:12:07]} {[%emt
00:00:52]} f5 {[%emt 00:01:09]} 17. Bh5 {[%clk 00:11:21]} Rf6 {[%clk 00:14:53]}
{[%emt 00:00:20]} 18. f4 {[%clk 00:11:04]} {[%emt 00:00:28]} Nxc3 {[%clk
00:14:57]} {[%emt 00:00:05]} 19. fxe5 {[%clk 00:10:03]} {[%emt 00:01:11]} Bxe5
{[%clk 00:14:36]} {[%emt 00:00:31]} 20. bxc3 {[%clk 00:10:09]} {[%emt
00:00:04]} f4 {[%clk 00:14:43]} {[%emt 00:00:02]} 21. d4 {[%clk 00:09:37]}
{[%emt 00:00:43]} Bd6 {[%clk 00:14:51]} {[%emt 00:00:01]} 22. gxf4 {[%clk
00:06:26]} {[%emt 00:03:21]} Bxf4 {[%clk 00:14:59]} {[%emt 00:00:02]} 23. Qe2
{[%clk 00:04:52]} {[%emt 00:01:44]} Qa5 {[%clk 00:14:20]} {[%emt 00:00:49]} 24.
Qc4+ {[%clk 00:04:39]} {[%emt 00:00:23]} Kh8 {[%clk 00:14:25]} {[%emt
00:00:05]} 25. Rab1 {[%clk 00:04:19]} {[%emt 00:00:30]} Qxh5 {[%clk 00:14:24]}
{[%emt 00:00:11]} 0-1

[ePGN "0.1;DGT LiveChess/2.2.5"]